[Event "*** SCC Grand Prix: Titled Tuesday Blitz"]
[Site "Chess.com"]
[Date "2020.08.25"]
[Round "10"]
[White "frequentblunders"]
[Black "sertalzin"]
[Result "1-0"]
[WhiteElo "2080"]
[BlackElo "1870"]
[TimeControl "180+1"]
[EndTime "12:00:15 PDT"]
[Termination "frequentblunders won on time"]

1. e4 {[%clk 0:03:00]} 1... c5 {[%clk 0:02:59.2]} 2. c4 {[%clk 0:02:59.4]} 2...
Nc6 {[%clk 0:02:57.9]} 3. Nc3 {[%clk 0:03:00.3]} 3... e6 {[%clk 0:02:57.5]} 4.
f4 {[%clk 0:03:00.7]} 4... d6 {[%clk 0:02:34.4]} 5. Nf3 {[%clk 0:02:59.3]} 5...
g6 {[%clk 0:02:33.6]} 6. d4 {[%clk 0:02:56.3]} 6... cxd4 {[%clk 0:02:32.1]} 7.
Nxd4 {[%clk 0:02:57.2]} 7... Bg7 {[%clk 0:02:32]} 8. Be3 {[%clk 0:02:57]} 8...
Nge7 {[%clk 0:02:20.3]} 9. Be2 {[%clk 0:02:55.8]} 9... O-O {[%clk 0:02:17.2]}
10. Qd2 {[%clk 0:02:49.1]} 10... d5 {[%clk 0:01:47.9]} 11. cxd5 {[%clk 0:02:43]}
11... exd5 {[%clk 0:01:46.2]} 12. e5 {[%clk 0:02:37.4]} 12... Nxd4 {[%clk
0:01:36]} 13. Bxd4 {[%clk 0:02:38.3]} 13... Be6 {[%clk 0:01:14.4]} 14. O-O
{[%clk 0:02:37]} 14... a6 {[%clk 0:00:50.4]} 15. g4 {[%clk 0:02:28.2]} 15... Nc6
{[%clk 0:00:39.6]} 16. f5 {[%clk 0:02:20.8]} 16... Nxd4 {[%clk 0:00:33.8]} 17.
Qxd4 {[%clk 0:02:06.1]} 17... gxf5 {[%clk 0:00:32.9]} 18. gxf5 {[%clk 0:02:07]}
18... Qg5+ {[%clk 0:00:32.6]} 19. Qg4 {[%clk 0:01:56.9]} 19... Qe3+ {[%clk
0:00:30.7]} 20. Kh1 {[%clk 0:01:52.8]} 20... d4 {[%clk 0:00:25.4]} 21. Ne4
{[%clk 0:01:14.2]} 21... Bd5 {[%clk 0:00:20.2]} 22. Bf3 {[%clk 0:01:00]} 22...
Kh8 {[%clk 0:00:19.4]} 23. f6 {[%clk 0:00:48.8]} 23... Bh6 {[%clk 0:00:18.6]}
24. Rae1 {[%clk 0:00:45.8]} 24... Qf4 {[%clk 0:00:13.3]} 25. Qxf4 {[%clk
0:00:31.1]} 25... Bxf4 {[%clk 0:00:12.4]} 26. Nd6 {[%clk 0:00:30.7]} 26... Bxf3+
{[%clk 0:00:11.6]} 27. Rxf3 {[%clk 0:00:31.6]} 27... Be3 {[%clk 0:00:11]} 28.
Rfxe3 {[%clk 0:00:15.5]} 28... dxe3 {[%clk 0:00:10.3]} 29. Rxe3 {[%clk
0:00:15.4]} 29... b5 {[%clk 0:00:10]} 30. Rc3 {[%clk 0:00:14.2]} 30... Ra7
{[%clk 0:00:09.7]} 31. Kg2 {[%clk 0:00:12.3]} 31... h6 {[%clk 0:00:09.3]} 32.
Kf3 {[%clk 0:00:11.8]} 32... Kh7 {[%clk 0:00:09.5]} 33. Kf4 {[%clk 0:00:12.1]}
33... Kg6 {[%clk 0:00:09.3]} 34. Rg3+ {[%clk 0:00:11.7]} 34... Kh7 {[%clk
0:00:09]} 35. Rg7+ {[%clk 0:00:11.4]} 35... Kh8 {[%clk 0:00:08.9]} 36. Kf5
{[%clk 0:00:11.2]} 36... Rc7 {[%clk 0:00:08.5]} 37. Rg4 {[%clk 0:00:08.9]} 37...
Rc5 {[%clk 0:00:06.9]} 38. Rh4 {[%clk 0:00:08.3]} 38... Kh7 {[%clk 0:00:06.6]}
39. Rg4 {[%clk 0:00:08.5]} 39... Rc2 {[%clk 0:00:05.9]} 40. Rg7+ {[%clk
0:00:07.8]} 40... Kh8 {[%clk 0:00:05.7]} 41. Nxf7+ {[%clk 0:00:08.7]} 41... Rxf7
{[%clk 0:00:05.1]} 42. Rxf7 {[%clk 0:00:09.6]} 42... Rxb2 {[%clk 0:00:02.8]} 43.
e6 {[%clk 0:00:09.8]} 1-0

[Event "*** SCC Grand Prix: Titled Tuesday Blitz"]
[Site "Chess.com"]
[Date "2020.08.25"]
[Round "10"]
[White "Klavdia_Nik"]
[Black "ExtremeLearner"]
[Result "0-1"]
[WhiteElo "2087"]
[BlackElo "2393"]
[TimeControl "180+1"]
[EndTime "12:00:16 PDT"]
[Termination "ExtremeLearner won on time"]

1. Nf3 {[%clk 0:03:00.9]} 1... d5 {[%clk 0:02:57.8]} 2. c4 {[%clk 0:02:59.6]}
2... c6 {[%clk 0:02:56.5]} 3. b3 {[%clk 0:02:56.6]} 3... Nf6 {[%clk 0:02:56.1]}
4. Bb2 {[%clk 0:02:56.9]} 4... Bg4 {[%clk 0:02:56]} 5. Ne5 {[%clk 0:02:55.7]}
5... Bf5 {[%clk 0:02:50.1]} 6. g3 {[%clk 0:02:55.2]} 6... Nbd7 {[%clk
0:02:49.9]} 7. Nf3 {[%clk 0:02:54.6]} 7... e6 {[%clk 0:02:49.9]} 8. Bg2 {[%clk
0:02:54.3]} 8... Be7 {[%clk 0:02:50.3]} 9. O-O {[%clk 0:02:54.1]} 9... a5 {[%clk
0:02:50.4]} 10. Nc3 {[%clk 0:02:51.5]} 10... O-O {[%clk 0:02:50.3]} 11. d3
{[%clk 0:02:51.3]} 11... h6 {[%clk 0:02:50.5]} 12. Re1 {[%clk 0:02:50.8]} 12...
Bh7 {[%clk 0:02:48.6]} 13. Qd2 {[%clk 0:02:42.5]} 13... Rb8 {[%clk 0:02:46.5]}
14. Rad1 {[%clk 0:02:42]} 14... b5 {[%clk 0:02:46.1]} 15. e4 {[%clk 0:02:10.2]}
15... Nc5 {[%clk 0:02:37.3]} 16. Ne5 {[%clk 0:02:05.1]} 16... Qc7 {[%clk
0:02:17.3]} 17. exd5 {[%clk 0:01:36.6]} 17... exd5 {[%clk 0:02:15.4]} 18. d4
{[%clk 0:01:31.4]} 18... Nce4 {[%clk 0:01:38.3]} 19. Nxe4 {[%clk 0:01:20.6]}
19... Nxe4 {[%clk 0:01:37.3]} 20. Bxe4 {[%clk 0:01:18.4]} 20... dxe4 {[%clk
0:01:37.1]} 21. cxb5 {[%clk 0:01:05.8]} 21... cxb5 {[%clk 0:01:35.1]} 22. Rc1
{[%clk 0:01:04.1]} 22... Qb7 {[%clk 0:01:16.7]} 23. Qxa5 {[%clk 0:00:46.9]}
23... Ra8 {[%clk 0:01:15.3]} 24. Qc7 {[%clk 0:00:42.3]} 24... Qxc7 {[%clk
0:01:11.4]} 25. Rxc7 {[%clk 0:00:42.7]} 25... Bd6 {[%clk 0:01:06.4]} 26. Rd7
{[%clk 0:00:30.3]} 26... Bxe5 {[%clk 0:01:03.6]} 27. dxe5 {[%clk 0:00:29.1]}
27... Rxa2 {[%clk 0:01:04.1]} 28. Bd4 {[%clk 0:00:26.5]} 28... Rd2 {[%clk
0:00:49.6]} 29. Rc1 {[%clk 0:00:18.2]} 29... Bf5 {[%clk 0:00:46.1]} 30. Rd6
{[%clk 0:00:16.2]} 30... Ra8 {[%clk 0:00:41.7]} 31. Be3 {[%clk 0:00:14.7]} 31...
Rxd6 {[%clk 0:00:39.3]} 32. exd6 {[%clk 0:00:14.8]} 32... Rd8 {[%clk 0:00:39.2]}
33. Bc5 {[%clk 0:00:14.8]} 33... Be6 {[%clk 0:00:32.8]} 34. b4 {[%clk
0:00:14.8]} 34... Bc4 {[%clk 0:00:32.1]} 35. Ra1 {[%clk 0:00:14.2]} 35... f5
{[%clk 0:00:29]} 36. Ra7 {[%clk 0:00:13.7]} 36... Be6 {[%clk 0:00:24.8]} 37. h4
{[%clk 0:00:13.1]} 37... Bd7 {[%clk 0:00:24.6]} 38. Kf1 {[%clk 0:00:12.8]} 38...
Kf7 {[%clk 0:00:24.7]} 39. Ke2 {[%clk 0:00:12.9]} 39... Ke6 {[%clk 0:00:22.6]}
40. Ke3 {[%clk 0:00:13]} 40... Rf8 {[%clk 0:00:20.6]} 41. Rb7 {[%clk 0:00:09.6]}
41... g5 {[%clk 0:00:19.6]} 42. hxg5 {[%clk 0:00:09.4]} 42... hxg5 {[%clk
0:00:20.5]} 43. Kd4 {[%clk 0:00:08.9]} 43... f4 {[%clk 0:00:18.5]} 44. Kxe4
{[%clk 0:00:08.4]} 44... fxg3 {[%clk 0:00:18]} 45. fxg3 {[%clk 0:00:05.5]} 45...
Bc6+ {[%clk 0:00:18.1]} 46. Kd4 {[%clk 0:00:04.6]} 46... Bxb7 {[%clk 0:00:18.6]}
47. d7 {[%clk 0:00:01.1]} 47... Rd8 {[%clk 0:00:19.5]} 0-1

[Event "*** SCC Grand Prix: Titled Tuesday Blitz"]
[Site "Chess.com"]
[Date "2020.08.25"]
[Round "10"]
[White "RenarddesSurfaces"]
[Black "Sophist4Life"]
[Result "1-0"]
[WhiteElo "2556"]
[BlackElo "2444"]
[TimeControl "180+1"]
[EndTime "12:00:18 PDT"]
[Termination "RenarddesSurfaces won on time"]

1. e4 {[%clk 0:03:00.9]} 1... c5 {[%clk 0:02:51]} 2. c3 {[%clk 0:03:01]} 2... d5
{[%clk 0:02:48.6]} 3. exd5 {[%clk 0:03:00.9]} 3... Qxd5 {[%clk 0:02:46.6]} 4. d4
{[%clk 0:03:01.1]} 4... Nf6 {[%clk 0:02:46.4]} 5. Nf3 {[%clk 0:03:01.5]} 5...
Bg4 {[%clk 0:02:46.3]} 6. Nbd2 {[%clk 0:03:01.7]} 6... e6 {[%clk 0:02:43.9]} 7.
Qa4+ {[%clk 0:02:58.5]} 7... Nc6 {[%clk 0:02:40.6]} 8. Bc4 {[%clk 0:02:58.6]}
8... Qd6 {[%clk 0:02:20.2]} 9. Bb5 {[%clk 0:02:58.8]} 9... cxd4 {[%clk
0:02:01.7]} 10. Nc4 {[%clk 0:02:49.7]} 10... Qc7 {[%clk 0:02:00.1]} 11. Bf4
{[%clk 0:02:38.9]} 11... Qxf4 {[%clk 0:01:57.9]} 12. Bxc6+ {[%clk 0:02:38.8]}
12... Kd8 {[%clk 0:01:57]} 13. Bxb7 {[%clk 0:02:35.3]} 13... Rb8 {[%clk
0:01:55.4]} 14. Qxa7 {[%clk 0:02:26.2]} 14... Qc7 {[%clk 0:01:38.2]} 15. Na5
{[%clk 0:02:18.3]} 15... Bxf3 {[%clk 0:01:35]} 16. gxf3 {[%clk 0:02:15.8]} 16...
Bc5 {[%clk 0:01:34.1]} 17. Qa6 {[%clk 0:02:07.6]} 17... dxc3 {[%clk 0:01:34]}
18. Nc6+ {[%clk 0:01:49.2]} 18... Kd7 {[%clk 0:01:30.5]} 19. Rd1+ {[%clk
0:01:37]} 19... Bd6 {[%clk 0:01:29.7]} 20. Nxb8+ {[%clk 0:01:10.5]} 20... Rxb8
{[%clk 0:01:30.6]} 21. Be4 {[%clk 0:01:04.1]} 21... Nxe4 {[%clk 0:01:26.8]} 22.
fxe4 {[%clk 0:01:01.4]} 22... cxb2 {[%clk 0:01:24.8]} 23. O-O {[%clk 0:01:00.8]}
23... Ke7 {[%clk 0:01:22.9]} 24. Rb1 {[%clk 0:00:22.3]} 24... Bxh2+ {[%clk
0:01:21.7]} 25. Kg2 {[%clk 0:00:22.1]} 25... Bf4 {[%clk 0:01:16.6]} 26. Rxb2
{[%clk 0:00:18.7]} 26... Rxb2 {[%clk 0:01:00.4]} 27. Qa3+ {[%clk 0:00:19.1]}
27... Kf6 {[%clk 0:00:51.4]} 28. Qxb2+ {[%clk 0:00:19.1]} 28... Be5 {[%clk
0:00:48.2]} 29. Qe2 {[%clk 0:00:19.1]} 29... g5 {[%clk 0:00:46.5]} 30. Qh5
{[%clk 0:00:18.4]} 30... Bf4 {[%clk 0:00:44.2]} 31. Qxh7 {[%clk 0:00:18]} 31...
Qc2 {[%clk 0:00:41.1]} 32. Qh6+ {[%clk 0:00:16.2]} 32... Ke5 {[%clk 0:00:39.2]}
33. Re1 {[%clk 0:00:14.9]} 33... Qxa2 {[%clk 0:00:36.5]} 34. Qg7+ {[%clk
0:00:14.2]} 34... Kd6 {[%clk 0:00:21.8]} 35. e5+ {[%clk 0:00:13.3]} 35... Kd5
{[%clk 0:00:09.4]} 36. Qxf7 {[%clk 0:00:12.5]} 36... Qd2 {[%clk 0:00:06.7]} 37.
Qd7+ {[%clk 0:00:12.3]} 37... Kc4 {[%clk 0:00:06.2]} 38. Re4+ {[%clk 0:00:11.1]}
38... Kc3 {[%clk 0:00:04.1]} 39. Qxd2+ {[%clk 0:00:07.5]} 39... Bxd2 {[%clk
0:00:05]} 40. Kf3 {[%clk 0:00:07.5]} 40... Kd3 {[%clk 0:00:02.2]} 41. Re2 {[%clk
0:00:05.2]} 41... Bf4 {[%clk 0:00:01.9]} 42. Re4 {[%clk 0:00:04.7]} 1-0

[Event "*** SCC Grand Prix: Titled Tuesday Blitz"]
[Site "Chess.com"]
[Date "2020.08.25"]
[Round "10"]
[White "SilviusTiberius"]
[Black "Playgood28"]
[Result "1-0"]
[WhiteElo "2472"]
[BlackElo "2348"]
[TimeControl "180+1"]
[EndTime "12:00:19 PDT"]
[Termination "SilviusTiberius won on time"]

1. e4 {[%clk 0:03:00.9]} 1... e5 {[%clk 0:02:59.5]} 2. Nf3 {[%clk 0:03:00.5]}
2... d6 {[%clk 0:02:58.8]} 3. d4 {[%clk 0:02:58.5]} 3... exd4 {[%clk 0:02:59.7]}
4. Nxd4 {[%clk 0:02:58.2]} 4... Nf6 {[%clk 0:03:00.1]} 5. Nc3 {[%clk 0:02:58.4]}
5... Be7 {[%clk 0:03:00.4]} 6. Be2 {[%clk 0:02:57.4]} 6... O-O {[%clk
0:02:59.7]} 7. Bf4 {[%clk 0:02:51.8]} 7... a6 {[%clk 0:02:56.3]} 8. g4 {[%clk
0:02:49.9]} 8... d5 {[%clk 0:02:45.7]} 9. e5 {[%clk 0:02:49.5]} 9... Ne8 {[%clk
0:02:42.4]} 10. Nf5 {[%clk 0:02:46.1]} 10... c6 {[%clk 0:02:24.5]} 11. Qd3
{[%clk 0:02:42.7]} 11... Nc7 {[%clk 0:02:21.6]} 12. O-O-O {[%clk 0:02:27.5]}
12... Nd7 {[%clk 0:02:13.2]} 13. Qh3 {[%clk 0:02:05.3]} 13... Bg5 {[%clk
0:02:10.4]} 14. Bxg5 {[%clk 0:01:39.6]} 14... Qxg5+ {[%clk 0:02:09.4]} 15. Kb1
{[%clk 0:01:40]} 15... Nxe5 {[%clk 0:02:08.4]} 16. f4 {[%clk 0:01:20.6]} 16...
Qxf4 {[%clk 0:02:06.5]} 17. Rhf1 {[%clk 0:01:12.2]} 17... Qg5 {[%clk 0:02:06]}
18. Qg3 {[%clk 0:01:12.4]} 18... Bxf5 {[%clk 0:01:22.2]} 19. Rxf5 {[%clk
0:01:11.4]} 19... Qe7 {[%clk 0:01:12.2]} 20. Rxe5 {[%clk 0:01:08.3]} 20... Qd7
{[%clk 0:01:08]} 21. Bd3 {[%clk 0:01:06.7]} 21... g6 {[%clk 0:01:05]} 22. Rde1
{[%clk 0:00:47.4]} 22... Rae8 {[%clk 0:01:01.5]} 23. g5 {[%clk 0:00:38.4]} 23...
Rxe5 {[%clk 0:00:58.4]} 24. Rxe5 {[%clk 0:00:38.3]} 24... b5 {[%clk 0:00:54.3]}
25. Ne2 {[%clk 0:00:31.2]} 25... Re8 {[%clk 0:00:54]} 26. c3 {[%clk 0:00:28.8]}
26... Rxe5 {[%clk 0:00:50.8]} 27. Qxe5 {[%clk 0:00:28.3]} 27... Ne6 {[%clk
0:00:51.1]} 28. h4 {[%clk 0:00:23.2]} 28... c5 {[%clk 0:00:49.9]} 29. Bc2 {[%clk
0:00:20.1]} 29... d4 {[%clk 0:00:47.3]} 30. cxd4 {[%clk 0:00:19.4]} 30... cxd4
{[%clk 0:00:47.2]} 31. Bb3 {[%clk 0:00:19]} 31... d3 {[%clk 0:00:40.9]} 32. Bxe6
{[%clk 0:00:17.5]} 32... fxe6 {[%clk 0:00:19.4]} 33. Nc3 {[%clk 0:00:16.9]}
33... d2 {[%clk 0:00:18]} 34. Kc2 {[%clk 0:00:16.7]} 34... b4 {[%clk 0:00:15.8]}
35. Nd1 {[%clk 0:00:15.1]} 35... Qa4+ {[%clk 0:00:14]} 36. Kxd2 {[%clk
0:00:15.1]} 36... Qxa2 {[%clk 0:00:13.9]} 37. Qb8+ {[%clk 0:00:15.3]} 37... Kf7
{[%clk 0:00:12.5]} 38. Qxb4 {[%clk 0:00:15.4]} 38... Qd5+ {[%clk 0:00:10.6]} 39.
Ke2 {[%clk 0:00:15.6]} 39... Qg2+ {[%clk 0:00:09.5]} 40. Nf2 {[%clk 0:00:15.3]}
40... Qd5 {[%clk 0:00:08.6]} 41. Qf4+ {[%clk 0:00:15.5]} 41... Kg8 {[%clk
0:00:08.2]} 42. Ne4 {[%clk 0:00:16]} 42... Qb5+ {[%clk 0:00:06.8]} 43. Kf3
{[%clk 0:00:16.3]} 43... Qxb2 {[%clk 0:00:05]} 44. Nf6+ {[%clk 0:00:14.6]} 44...
Kh8 {[%clk 0:00:04.4]} 45. Qd6 {[%clk 0:00:12.9]} 45... Qc3+ {[%clk 0:00:00.5]}
46. Ke4 {[%clk 0:00:12.8]} 1-0

[Event "*** SCC Grand Prix: Titled Tuesday Blitz"]
[Site "Chess.com"]
[Date "2020.08.25"]
[Round "10"]
[White "Ginger_GM"]
[Black "Tooweak2slow03"]
[Result "1-0"]
[WhiteElo "2583"]
[BlackElo "2687"]
[TimeControl "180+1"]
[EndTime "12:00:21 PDT"]
[Termination "Ginger_GM won by resignation"]

1. e4 {[%clk 0:03:00.9]} 1... e6 {[%clk 0:02:57.4]} 2. Nf3 {[%clk 0:02:57.9]}
2... d5 {[%clk 0:02:57.3]} 3. e5 {[%clk 0:02:58.2]} 3... Bd7 {[%clk 0:02:57.2]}
4. a3 {[%clk 0:02:47.6]} 4... a5 {[%clk 0:02:57.2]} 5. d4 {[%clk 0:02:46.3]}
5... c5 {[%clk 0:02:57.3]} 6. c3 {[%clk 0:02:46.2]} 6... Qb6 {[%clk 0:02:57.3]}
7. a4 {[%clk 0:02:43.3]} 7... Ne7 {[%clk 0:02:51.2]} 8. Bd3 {[%clk 0:02:41.4]}
8... Nbc6 {[%clk 0:02:47.5]} 9. O-O {[%clk 0:02:32.7]} 9... cxd4 {[%clk
0:02:47.6]} 10. cxd4 {[%clk 0:02:32.6]} 10... Nxd4 {[%clk 0:02:36.6]} 11. Nc3
{[%clk 0:02:20]} 11... Nxf3+ {[%clk 0:02:22.7]} 12. Qxf3 {[%clk 0:02:19.4]}
12... Ng6 {[%clk 0:02:23.3]} 13. Bb5 {[%clk 0:01:30.3]} 13... Bxb5 {[%clk
0:02:11.4]} 14. Nxb5 {[%clk 0:01:29.6]} 14... Nxe5 {[%clk 0:01:52]} 15. Qg3
{[%clk 0:01:28.7]} 15... f6 {[%clk 0:01:46.4]} 16. Bf4 {[%clk 0:01:20.8]} 16...
Kf7 {[%clk 0:00:55.9]} 17. Bxe5 {[%clk 0:01:12.5]} 17... fxe5 {[%clk 0:00:56.8]}
18. Qxe5 {[%clk 0:01:10.1]} 18... Be7 {[%clk 0:00:54.7]} 19. Rae1 {[%clk
0:00:44.6]} 19... Rad8 {[%clk 0:00:52.1]} 20. Kh1 {[%clk 0:00:43.3]} 20... Bf6
{[%clk 0:00:50.9]} 21. Qg3 {[%clk 0:00:39.2]} 21... Rhe8 {[%clk 0:00:51.2]} 22.
f4 {[%clk 0:00:31.7]} 22... Kg8 {[%clk 0:00:49.7]} 23. b3 {[%clk 0:00:31.9]}
23... Qc5 {[%clk 0:00:42.2]} 24. Re2 {[%clk 0:00:31.7]} 24... Qb4 {[%clk
0:00:39.7]} 25. Rfe1 {[%clk 0:00:29.1]} 25... d4 {[%clk 0:00:33.6]} 26. Qd3
{[%clk 0:00:24.5]} 26... Qc5 {[%clk 0:00:31.7]} 27. h3 {[%clk 0:00:20]} 27...
Bh4 {[%clk 0:00:28.6]} 28. Rd1 {[%clk 0:00:19.4]} 28... e5 {[%clk 0:00:27.3]}
29. fxe5 {[%clk 0:00:18.2]} 29... Rxe5 {[%clk 0:00:26.1]} 30. Rxe5 {[%clk
0:00:15.3]} 30... Qxe5 {[%clk 0:00:27]} 31. Rf1 {[%clk 0:00:14.9]} 31... h6
{[%clk 0:00:21.1]} 32. Qc4+ {[%clk 0:00:12.2]} 32... Kh8 {[%clk 0:00:20.1]} 33.
Qd3 {[%clk 0:00:07]} 33... Bf6 {[%clk 0:00:16]} 34. Na3 {[%clk 0:00:06.5]} 34...
Qe3 {[%clk 0:00:14.3]} 35. Rd1 {[%clk 0:00:06.3]} 35... Qg5 {[%clk 0:00:13.2]}
36. Nc4 {[%clk 0:00:05.7]} 36... b5 {[%clk 0:00:11.6]} 37. axb5 {[%clk
0:00:05.6]} 37... Qxb5 {[%clk 0:00:12.5]} 38. Re1 {[%clk 0:00:05.7]} 38... Qb4
{[%clk 0:00:08.7]} 39. Rf1 {[%clk 0:00:05.4]} 39... Re8 {[%clk 0:00:07.7]} 40.
Qg6 {[%clk 0:00:05]} 40... Re1 {[%clk 0:00:05.7]} 41. Qf5 {[%clk 0:00:03.9]}
41... Rxf1+ {[%clk 0:00:03.4]} 42. Qxf1 {[%clk 0:00:04.8]} 42... Qxb3 {[%clk
0:00:04.3]} 43. Nd6 {[%clk 0:00:05.3]} 43... Qe6 {[%clk 0:00:03.8]} 44. Qf4
{[%clk 0:00:04.4]} 44... Qe5 {[%clk 0:00:02.7]} 45. Nf7+ {[%clk 0:00:03.6]}
45... Kh7 {[%clk 0:00:01.8]} 46. Nxe5 {[%clk 0:00:04.5]} 46... Bxe5 {[%clk
0:00:02.4]} 47. Qxe5 {[%clk 0:00:05]} 47... d3 {[%clk 0:00:03.3]} 48. Qe4+
{[%clk 0:00:05.1]} 1-0

[Event "*** SCC Grand Prix: Titled Tuesday Blitz"]
[Site "Chess.com"]
[Date "2020.08.25"]
[Round "10"]
[White "Dr_crypt"]
[Black "Crazy_girl99"]
[Result "0-1"]
[WhiteElo "2393"]
[BlackElo "2519"]
[TimeControl "180+1"]
[EndTime "12:00:23 PDT"]
[Termination "Crazy_girl99 won on time"]

1. d4 {[%clk 0:03:00.5]} 1... d5 {[%clk 0:02:58.2]} 2. Nf3 {[%clk 0:03:00.3]}
2... Nf6 {[%clk 0:02:58]} 3. Bf4 {[%clk 0:03:00.4]} 3... e6 {[%clk 0:02:53.8]}
4. e3 {[%clk 0:03:00.6]} 4... Bd6 {[%clk 0:02:53.9]} 5. Bg3 {[%clk 0:03:00.5]}
5... O-O {[%clk 0:02:54.2]} 6. Nbd2 {[%clk 0:03:00.3]} 6... b6 {[%clk
0:02:54.7]} 7. Bd3 {[%clk 0:02:59.5]} 7... Bb7 {[%clk 0:02:55]} 8. c3 {[%clk
0:02:56.8]} 8... c5 {[%clk 0:02:55.4]} 9. Qe2 {[%clk 0:02:53.2]} 9... Nc6 {[%clk
0:02:53.9]} 10. Rd1 {[%clk 0:02:52.4]} 10... Qc7 {[%clk 0:02:51.6]} 11. e4
{[%clk 0:02:43.2]} 11... dxe4 {[%clk 0:02:46.3]} 12. Nxe4 {[%clk 0:02:42.8]}
12... Nxe4 {[%clk 0:02:42.4]} 13. Qxe4 {[%clk 0:02:42.6]} 13... g6 {[%clk
0:02:35.4]} 14. dxc5 {[%clk 0:02:41.7]} 14... bxc5 {[%clk 0:02:09.6]} 15. Qh4
{[%clk 0:01:50.6]} 15... Ne5 {[%clk 0:01:26.7]} 16. Ng5 {[%clk 0:01:19.5]} 16...
h5 {[%clk 0:01:22.3]} 17. Ne4 {[%clk 0:01:05]} 17... Nxd3+ {[%clk 0:00:57.5]}
18. Rxd3 {[%clk 0:01:05.9]} 18... Bxg3 {[%clk 0:00:57.6]} 19. hxg3 {[%clk
0:00:54.6]} 19... Rfd8 {[%clk 0:00:29.8]} 20. Nf6+ {[%clk 0:00:49.6]} 20... Kf8
{[%clk 0:00:21.5]} 21. Re3 {[%clk 0:00:38.9]} 21... Bxg2 {[%clk 0:00:17.1]} 22.
Rg1 {[%clk 0:00:25.8]} 22... Qb7 {[%clk 0:00:16.4]} 23. Nxh5 {[%clk 0:00:19.7]}
23... gxh5 {[%clk 0:00:15.7]} 24. Qxh5 {[%clk 0:00:19.9]} 24... Qd5 {[%clk
0:00:14.1]} 25. Qe2 {[%clk 0:00:13.7]} 25... Bh3 {[%clk 0:00:13]} 26. f3 {[%clk
0:00:12.2]} 26... Bf5 {[%clk 0:00:12.2]} 27. Rh1 {[%clk 0:00:11.4]} 27... Ke7
{[%clk 0:00:11.7]} 28. g4 {[%clk 0:00:11.6]} 28... Bd3 {[%clk 0:00:11.6]} 29.
Qf2 {[%clk 0:00:10.6]} 29... c4 {[%clk 0:00:11.8]} 30. Rh5 {[%clk 0:00:09.9]}
30... Qd6 {[%clk 0:00:09.3]} 31. Qh4+ {[%clk 0:00:10.3]} 31... Kd7 {[%clk
0:00:09.6]} 32. Qf6 {[%clk 0:00:09.2]} 32... Qe7 {[%clk 0:00:08.9]} 33. Qd4+
{[%clk 0:00:09.6]} 33... Kc7 {[%clk 0:00:07.7]} 34. Rc5+ {[%clk 0:00:09.3]}
34... Kb6 {[%clk 0:00:08]} 35. Rd5+ {[%clk 0:00:09.3]} 35... Kc7 {[%clk
0:00:07.3]} 36. Rc5+ {[%clk 0:00:07.9]} 36... Kb7 {[%clk 0:00:06.1]} 37. Qe5
{[%clk 0:00:07.2]} 37... Rac8 {[%clk 0:00:04.8]} 38. Ra5 {[%clk 0:00:06.9]}
38... Rc6 {[%clk 0:00:04]} 39. Ra4 {[%clk 0:00:03.1]} 39... Rb6 {[%clk 0:00:04]}
40. Qa5 {[%clk 0:00:02.6]} 40... Kb8 {[%clk 0:00:03.7]} 41. Re5 {[%clk
0:00:01.9]} 41... Qc7 {[%clk 0:00:03.9]} 42. Rb5 {[%clk 0:00:02]} 42... Rd6
{[%clk 0:00:03.3]} 0-1

[Event "*** SCC Grand Prix: Titled Tuesday Blitz"]
[Site "Chess.com"]
[Date "2020.08.25"]
[Round "10"]
[White "stolencandy13"]
[Black "Mikasinski"]
[Result "1-0"]
[WhiteElo "2517"]
[BlackElo "2370"]
[TimeControl "180+1"]
[EndTime "12:00:23 PDT"]
[Termination "stolencandy13 won by resignation"]

1. e4 {[%clk 0:03:00.9]} 1... c5 {[%clk 0:02:59.9]} 2. Nf3 {[%clk 0:03:01]} 2...
d6 {[%clk 0:03:00]} 3. d4 {[%clk 0:03:01.6]} 3... cxd4 {[%clk 0:03:00.5]} 4.
Nxd4 {[%clk 0:03:02.5]} 4... Nf6 {[%clk 0:03:00.9]} 5. Nc3 {[%clk 0:03:03.2]}
5... g6 {[%clk 0:03:01.6]} 6. Be3 {[%clk 0:03:03.1]} 6... Bg7 {[%clk 0:03:02.2]}
7. f3 {[%clk 0:03:03.8]} 7... O-O {[%clk 0:03:02.7]} 8. Qd2 {[%clk 0:03:04.5]}
8... Nc6 {[%clk 0:03:03.3]} 9. O-O-O {[%clk 0:03:04.8]} 9... Bd7 {[%clk
0:03:03.8]} 10. Bc4 {[%clk 0:03:03.6]} 10... Rc8 {[%clk 0:03:03.9]} 11. Bb3
{[%clk 0:03:03.5]} 11... Ne5 {[%clk 0:03:04.4]} 12. Kb1 {[%clk 0:03:02.1]} 12...
Nc4 {[%clk 0:03:02.9]} 13. Bxc4 {[%clk 0:03:01.2]} 13... Rxc4 {[%clk 0:03:03.8]}
14. h4 {[%clk 0:03:00.6]} 14... h5 {[%clk 0:03:00.6]} 15. Nb3 {[%clk 0:02:49.9]}
15... Qb8 {[%clk 0:02:55.1]} 16. Bh6 {[%clk 0:02:37.6]} 16... Rfc8 {[%clk
0:02:46.3]} 17. Bxg7 {[%clk 0:02:36.8]} 17... Kxg7 {[%clk 0:02:46.4]} 18. g4
{[%clk 0:02:35.2]} 18... hxg4 {[%clk 0:02:35.6]} 19. h5 {[%clk 0:02:35.3]} 19...
Rh8 {[%clk 0:02:32.2]} 20. hxg6 {[%clk 0:02:27.6]} 20... fxg6 {[%clk 0:02:25.9]}
21. Rhg1 {[%clk 0:02:11.8]} 21... gxf3 {[%clk 0:02:19.7]} 22. Qg5 {[%clk
0:01:53.4]} 22... Be8 {[%clk 0:02:12.4]} 23. Nd5 {[%clk 0:01:46.4]} 23... Rh5
{[%clk 0:02:04.8]} 24. Qg3 {[%clk 0:01:36.8]} 24... Rxe4 {[%clk 0:01:52.8]} 25.
Nxf6 {[%clk 0:01:32.9]} 25... exf6 {[%clk 0:01:52.2]} 26. Qxf3 {[%clk
0:01:27.6]} 26... Ree5 {[%clk 0:01:41.6]} 27. Nd4 {[%clk 0:01:22.3]} 27... Bf7
{[%clk 0:01:33.5]} 28. Rdf1 {[%clk 0:01:16.8]} 28... Qd8 {[%clk 0:01:16.2]} 29.
Qxb7 {[%clk 0:01:12.6]} 29... Qa5 {[%clk 0:00:58.1]} 30. a3 {[%clk 0:00:53.2]}
30... Qd5 {[%clk 0:00:54.1]} 31. Qxd5 {[%clk 0:00:29.7]} 31... Rxd5 {[%clk
0:00:52.9]} 32. Nc6 {[%clk 0:00:28.1]} 32... Rdg5 {[%clk 0:00:45.3]} 33. Nxa7
{[%clk 0:00:26.4]} 33... Bc4 {[%clk 0:00:30]} 34. Re1 {[%clk 0:00:23.4]} 34...
Rxg1 {[%clk 0:00:29.3]} 35. Rxg1 {[%clk 0:00:24.3]} 35... Rc5 {[%clk 0:00:22.5]}
36. b3 {[%clk 0:00:22.7]} 36... Ba6 {[%clk 0:00:16.8]} 37. a4 {[%clk 0:00:14.4]}
37... g5 {[%clk 0:00:15.9]} 38. c4 {[%clk 0:00:12.3]} 38... Bxc4 {[%clk
0:00:09.5]} 39. bxc4 {[%clk 0:00:10.6]} 39... Rxc4 {[%clk 0:00:10]} 40. Nb5
{[%clk 0:00:10.9]} 40... Rb4+ {[%clk 0:00:06.3]} 41. Kc2 {[%clk 0:00:10.2]}
41... Rxa4 {[%clk 0:00:05.4]} 42. Nxd6 {[%clk 0:00:10.4]} 42... Kg6 {[%clk
0:00:04.8]} 43. Kd3 {[%clk 0:00:10.5]} 43... Ra6 {[%clk 0:00:03.4]} 44. Ne4
{[%clk 0:00:09.8]} 44... Ra5 {[%clk 0:00:02.9]} 45. Ke3 {[%clk 0:00:09.3]} 45...
Rf5 {[%clk 0:00:03.4]} 46. Ng3 {[%clk 0:00:08.4]} 46... Re5+ {[%clk 0:00:03.7]}
47. Kd4 {[%clk 0:00:08.7]} 47... Re8 {[%clk 0:00:03.5]} 48. Ne4 {[%clk
0:00:08.8]} 48... Rd8+ {[%clk 0:00:02.8]} 49. Ke3 {[%clk 0:00:09]} 49... Re8
{[%clk 0:00:03.4]} 50. Kf3 {[%clk 0:00:08.8]} 50... Kf5 {[%clk 0:00:02.4]} 51.
Nd6+ {[%clk 0:00:08.5]} 1-0